Workbook

Sheet Problem
A1: Allocation | B1: Asset A | C1: Asset B
B2: 0.5 | C2: 0.5
A4: Parameters | B4: Asset A | C4: Asset B | D4: Portfolio
A5: mu | B5: 0 | C5: 0.02
A6: sigma | B6: 0.5 | C6: 0.1
A8: Observed
A9: mu | B9: =AVERAGE((B16:B36)) -> -0.1737043803 | C9: =AVERAGE(C16:C36) -> 0.007993618699 | D9: =AVERAGE(LN(F16:F36/F15:F35)) -> -0.05155501494
A10: sigma | B10: =_xlfn.STDEV.S((B16:B36)) -> 0.4900641072 | C10: =_xlfn.STDEV.S(C16:C36) -> 0.08662337781 | D10: =_xlfn.STDEV.S(LN(F16:F36/F15:F35)) -> 0.2541242092
A11: correl | B11: =CORREL(B16:B115,C16:C115) -> 0.08570970435
B13: Rtns | F13: Porfolio
A14: t | B14: Asset A Rtn | C14: Asset B Rtn | D14: Asset A CumRtn | E14: Asset B CumRtn | F14: Numeraire | G14: Numeraire Rtn | H14: Rtn Attribution
A15: 0 | D15: 1 | E15: 1 | F15: =SUM(B2:C2) -> 1
A16: =A15+1 -> 1 | B16: =IF(sigma_a=0,mu_a,_xlfn.NORM.INV(RAND(),mu_a,sigma_a)) -> 0.6911604345 | C16: =IF(sigma_b=0,mu_b,_xlfn.NORM.INV(RAND(),mu_b,sigma_b)) -> 0.1841749741 | D16: =D15*EXP(B16) -> 1.996030452 | E16: =E15*EXP(C16) -> 1.202226163 | F16: =alloc_a*F15/SUM(alloc_a,alloc_b)*EXP(B16)+alloc_b*F15/SUM(alloc_a,alloc_b)*EXP(C16) -> 1.599128308 | G16: =LN(F16/F15) -> 0.4694586732 | H16: =EXP(G16)/(EXP(B16)+EXP(C16)) -> 0.5
A17: =A16+1 -> 2 | B17: -0.4608381666 | C17: -0.1162539034 | D17: 1.259005682 | E17: 1.070280829 | F17: =alloc_a*F16/SUM(alloc_a,alloc_b)*EXP(B17)+alloc_b*F16/SUM(alloc_a,alloc_b)*EXP(C17) -> 1.216140199 | G17: =LN(F17/F16) -> -0.2737766008 | H17: =EXP(G17)/(EXP(B17)+EXP(C17)) -> 0.5
A18: 3 | B18: 0.2394192531 | C18: -0.06834930409 | D18: 1.599580682 | E18: 0.9995718584 | F18: =alloc_a*F17/SUM(alloc_a,alloc_b)*EXP(B18)+alloc_b*F17/SUM(alloc_a,alloc_b)*EXP(C18) -> 1.340457261 | G18: =LN(F18/F17) -> 0.0973287231 | H18: 0.5
A19: 4 | B19: 0.007767980865 | C19: 0.05005438311 | D19: 1.61205458 | E19: 1.050878152 | F19: =alloc_a*F18/SUM(alloc_a,alloc_b)*EXP(B19)+alloc_b*F18/SUM(alloc_a,alloc_b)*EXP(C19) -> 1.380085534 | G19: 0.02913468282 | H19: 0.5
A20: 5 | B20: -0.6239684879 | C20: 0.06215158966 | D20: =D19*EXP(B20) -> 0.8637611579 | E20: 1.118264287 | F20: =alloc_a*F19/SUM(alloc_a,alloc_b)*EXP(B20)+alloc_b*F19/SUM(alloc_a,alloc_b)*EXP(C20) -> 1.104025289 | G20: -0.2231826242 | H20: 0.5
A21: 6 | B21: -0.9048160034 | C21: -0.001279863883 | D21: =D20*EXP(B21) -> 0.3494918665 | E21: 1.116833976 | F21: =alloc_a*F20/SUM(alloc_a,alloc_b)*EXP(B21)+alloc_b*F20/SUM(alloc_a,alloc_b)*EXP(C21) -> 0.7746599235 | G21: -0.3542940084 | H21: 0.5
A22: 7 | B22: -0.5641392309 | C22: 0.07517473554 | D22: 0.1988083029 | E22: =E21*EXP(C22) -> 1.20402801 | F22: =alloc_a*F21/SUM(alloc_a,alloc_b)*EXP(B22)+alloc_b*F21/SUM(alloc_a,alloc_b)*EXP(C22) -> 0.6379022726 | G22: =LN(F22/F21) -> -0.1942390309 | H22: 0.5
A23: 8 | B23: 0.185680703 | C23: 0.02775880323 | D23: 0.2393727024 | E23: 1.237918592 | F23: =alloc_a*F22/SUM(alloc_a,alloc_b)*EXP(B23)+alloc_b*F22/SUM(alloc_a,alloc_b)*EXP(C23) -> 0.7119580767 | G23: 0.1098339349 | H23: 0.5
A24: 9 | B24: -0.1043616775 | C24: 0.07837407384 | D24: 0.2156507248 | E24: 1.338842572 | F24: =alloc_a*F23/SUM(alloc_a,alloc_b)*EXP(B24)+alloc_b*F23/SUM(alloc_a,alloc_b)*EXP(C24) -> 0.7057022996 | G24: -0.008825552149 | H24: 0.5
A25: 10 | B25: 0.1557928485 | C25: -0.06680411033 | D25: 0.2520060091 | E25: 1.252324442 | F25: =alloc_a*F24/SUM(alloc_a,alloc_b)*EXP(B25)+alloc_b*F24/SUM(alloc_a,alloc_b)*EXP(C25) -> 0.7423855937 | G25: 0.05067529975 | H25: 0.5
A26: 11 | B26: 1.016933408 | C26: -0.03154260986 | D26: 0.6967219034 | E26: 1.213439353 | F26: =alloc_a*F25/SUM(alloc_a,alloc_b)*EXP(B26)+alloc_b*F25/SUM(alloc_a,alloc_b)*EXP(C26) -> 1.385905174 | G26: 0.6242399843 | H26: 0.5
A27: 12 | B27: -0.359209272 | C27: 0.04629204005 | D27: 0.486470892 | E27: 1.270932405 | F27: =alloc_a*F26/SUM(alloc_a,alloc_b)*EXP(B27)+alloc_b*F26/SUM(alloc_a,alloc_b)*EXP(C27) -> 1.209623898 | G27: -0.1360439982 | H27: 0.5
A28: 13 | B28: -0.3112775436 | C28: 0.07045661058 | D28: 0.3563450578 | E28: 1.363707943 | F28: =alloc_a*F27/SUM(alloc_a,alloc_b)*EXP(B28)+alloc_b*F27/SUM(alloc_a,alloc_b)*EXP(C28) -> 1.091993149 | G28: -0.1023048801 | H28: 0.5
A29: 14 | B29: -0.2234562775 | C29: 0.07325659498 | D29: 0.2849869094 | E29: 1.467358747 | F29: =alloc_a*F28/SUM(alloc_a,alloc_b)*EXP(B29)+alloc_b*F28/SUM(alloc_a,alloc_b)*EXP(C29) -> 1.0241566 | G29: -0.06413515848 | H29: 0.5
A30: 15 | B30: -0.2895296343 | C30: -0.01214486404 | D30: 0.2133456484 | E30: 1.449645653 | F30: =alloc_a*F29/SUM(alloc_a,alloc_b)*EXP(B30)+alloc_b*F29/SUM(alloc_a,alloc_b)*EXP(C30) -> 0.8892465995 | G30: -0.141250137 | H30: 0.5
A31: 16 | B31: -0.8217326135 | C31: -0.07094382624 | D31: 0.09380151428 | E31: 1.350365536 | F31: =alloc_a*F30/SUM(alloc_a,alloc_b)*EXP(B31)+alloc_b*F30/SUM(alloc_a,alloc_b)*EXP(C31) -> 0.6096601033 | G31: -0.3774729927 | H31: 0.5
A32: 17 | B32: 0.09581992372 | C32: -0.1792015651 | D32: 0.1032342753 | E32: 1.128821037 | F32: =alloc_a*F31/SUM(alloc_a,alloc_b)*EXP(B32)+alloc_b*F31/SUM(alloc_a,alloc_b)*EXP(C32) -> 0.5903028609 | G32: -0.0322658654 | H32: 0.5
A33: 18 | B33: 0.2148802383 | C33: 0.1130531051 | D33: 0.1279809163 | E33: 1.263931199 | F33: =alloc_a*F32/SUM(alloc_a,alloc_b)*EXP(B33)+alloc_b*F32/SUM(alloc_a,alloc_b)*EXP(C33) -> 0.6963817049 | G33: 0.1652622078 | H33: 0.5
A34: 19 | B34: -0.3127961645 | C34: 0.05404008669 | D34: 0.09360511197 | E34: 1.334113398 | F34: =alloc_a*F33/SUM(alloc_a,alloc_b)*EXP(B34)+alloc_b*F33/SUM(alloc_a,alloc_b)*EXP(C34) -> 0.6221912511 | G34: -0.1126504134 | H34: 0.5
A35: 20 | B35: -0.4765271863 | C35: -0.09335350276 | D35: 0.05812278821 | E35: 1.215205803 | F35: =alloc_a*F34/SUM(alloc_a,alloc_b)*EXP(B35)+alloc_b*F34/SUM(alloc_a,alloc_b)*EXP(C35) -> 0.4765386108 | G35: -0.2666987733 | H35: 0.5
A36: 21 | B36: -0.8025945184 | C36: -0.02704745454 | D36: 0.02604858094 | E36: 1.182778099 | F36: =alloc_a*F35/SUM(alloc_a,alloc_b)*EXP(B36)+alloc_b*F35/SUM(alloc_a,alloc_b)*EXP(C36) -> 0.3386949891 | G36: -0.3414487846 | H36: 0.5
A37: 22 | B37: 0.0286491461 | C37: -0.05651893929 | D37: =D36*EXP(B37) -> 0.02680564336 | E37: =E36*EXP(C37) -> 1.11778277 | F37: =alloc_a*F36/SUM(alloc_a,alloc_b)*EXP(B37)+alloc_b*F36/SUM(alloc_a,alloc_b)*EXP(C37) -> 0.3343109324 | G37: =LN(F37/F36) -> -0.01302847015 | H37: 0.5
A38: 23 | B38: 0.255445168 | C38: 0.02855129842 | D38: 0.03460705651 | E38: 1.150156882 | F38: =alloc_a*F37/SUM(alloc_a,alloc_b)*EXP(B38)+alloc_b*F37/SUM(alloc_a,alloc_b)*EXP(C38) -> 0.3878005168 | G38: 0.1484195804 | H38: 0.5
A39: 24 | B39: -0.0654647418 | C39: 0.02561635644 | D39: 0.03241407898 | E39: 1.180000318 | F39: =alloc_a*F38/SUM(alloc_a,alloc_b)*EXP(B39)+alloc_b*F38/SUM(alloc_a,alloc_b)*EXP(C39) -> 0.3805446422 | G39: -0.01888758011 | H39: 0.5
A40: 25 | B40: 0.02941428435 | C40: 0.04296461709 | D40: 0.03338167675 | E40: 1.231803463 | F40: =alloc_a*F39/SUM(alloc_a,alloc_b)*EXP(B40)+alloc_b*F39/SUM(alloc_a,alloc_b)*EXP(C40) -> 0.3945776283 | G40: 0.03621240198 | H40: 0.5
A41: 26 | B41: 0.033328409 | C41: 0.001335848229 | D41: 0.03451298252 | E41: 1.233450065 | F41: =alloc_a*F40/SUM(alloc_a,alloc_b)*EXP(B41)+alloc_b*F40/SUM(alloc_a,alloc_b)*EXP(C41) -> 0.4015274746 | G41: 0.01746006365 | H41: 0.5
A42: 27 | B42: 0.4044332907 | C42: 0.05338457849 | D42: 0.05171608468 | E42: 1.301086588 | F42: =alloc_a*F41/SUM(alloc_a,alloc_b)*EXP(B42)+alloc_b*F41/SUM(alloc_a,alloc_b)*EXP(C42) -> 0.5126077028 | G42: 0.2442348797 | H42: 0.5
A43: 28 | B43: -0.1272042767 | C43: -0.05757603915 | D43: 0.04553879373 | E43: 1.228290927 | F43: =alloc_a*F42/SUM(alloc_a,alloc_b)*EXP(B43)+alloc_b*F42/SUM(alloc_a,alloc_b)*EXP(C43) -> 0.4676530019 | G43: -0.09178426886 | H43: 0.5
A44: 29 | B44: 0.4615347171 | C44: 0.2070926029 | D44: 0.07224761306 | E44: 1.510916342 | F44: =alloc_a*F43/SUM(alloc_a,alloc_b)*EXP(B44)+alloc_b*F43/SUM(alloc_a,alloc_b)*EXP(C44) -> 0.6585965255 | G44: 0.3423845224 | H44: 0.5
A45: 30 | B45: 0.08416055745 | C45: -0.04311873937 | D45: 0.07859120886 | E45: 1.447152129 | F45: =alloc_a*F44/SUM(alloc_a,alloc_b)*EXP(B45)+alloc_b*F44/SUM(alloc_a,alloc_b)*EXP(C45) -> 0.673612918 | G45: 0.02254454606 | H45: 0.5
A46: 31 | B46: -0.5284714512 | C46: -0.1825294103 | D46: 0.04632993959 | E46: 1.205709471 | F46: =alloc_a*F45/SUM(alloc_a,alloc_b)*EXP(B46)+alloc_b*F45/SUM(alloc_a,alloc_b)*EXP(C46) -> 0.4791629325 | G46: -0.3406149494 | H46: 0.5
A47: 32 | B47: -0.06189349444 | C47: -0.1943751702 | D47: 0.04354935537 | E47: 0.9927196272 | F47: =alloc_a*F46/SUM(alloc_a,alloc_b)*EXP(B47)+alloc_b*F46/SUM(alloc_a,alloc_b)*EXP(C47) -> 0.4224616529 | G47: -0.1259420106 | H47: 0.5
A48: 33 | B48: =IF(sigma_a=0,mu_a,_xlfn.NORM.INV(RAND(),mu_a,sigma_a)) -> 0.5190602976 | C48: =IF(sigma_b=0,mu_b,_xlfn.NORM.INV(RAND(),mu_b,sigma_b)) -> -0.0229046172 | D48: 0.07318241784 | E48: 0.9702401884 | F48: =alloc_a*F47/SUM(alloc_a,alloc_b)*EXP(B48)+alloc_b*F47/SUM(alloc_a,alloc_b)*EXP(C48) -> 0.5614100276 | G48: 0.2843528451 | H48: 0.5
A49: 34 | B49: -0.1061645349 | C49: 0.1002372846 | D49: 0.06581124128 | E49: 1.072535706 | F49: =alloc_a*F48/SUM(alloc_a,alloc_b)*EXP(B49)+alloc_b*F48/SUM(alloc_a,alloc_b)*EXP(C49) -> 0.5627321096 | G49: 0.002352162848 | H49: 0.5
A50: 35 | B50: -0.8328867225 | C50: 0.3755142121 | D50: 0.02861422413 | E50: 1.561332894 | F50: =alloc_a*F49/SUM(alloc_a,alloc_b)*EXP(B50)+alloc_b*F49/SUM(alloc_a,alloc_b)*EXP(C50) -> 0.5319315668 | G50: -0.05628884119 | H50: 0.5
A51: 36 | B51: 0.6877127924 | C51: 0.05673233441 | D51: 0.05691829018 | E51: 1.652471771 | F51: =alloc_a*F50/SUM(alloc_a,alloc_b)*EXP(B51)+alloc_b*F50/SUM(alloc_a,alloc_b)*EXP(C51) -> 0.810539551 | G51: 0.4211852912 | H51: 0.5
A52: 37 | B52: 0.3516954907 | C52: 0.05487116284 | D52: 0.08090796098 | E52: 1.745678618 | F52: =alloc_a*F51/SUM(alloc_a,alloc_b)*EXP(B52)+alloc_b*F51/SUM(alloc_a,alloc_b)*EXP(C52) -> 1.004209915 | G52: 0.2142562185 | H52: 0.5
A53: 38 | B53: 0.4454087757 | C53: 0.09585002177 | D53: 0.1263077008 | E53: 1.921283389 | F53: =alloc_a*F52/SUM(alloc_a,alloc_b)*EXP(B53)+alloc_b*F52/SUM(alloc_a,alloc_b)*EXP(C53) -> 1.336463913 | G53: 0.2858261775 | H53: 0.5
A54: 39 | B54: -0.8029465398 | C54: -0.03302085093 | D54: 0.05658672744 | E54: 1.858877003 | F54: =alloc_a*F53/SUM(alloc_a,alloc_b)*EXP(B54)+alloc_b*F53/SUM(alloc_a,alloc_b)*EXP(C54) -> 0.9458992628 | G54: -0.3456464584 | H54: 0.5
A55: 40 | B55: 0.02769221848 | C55: -0.03251710949 | D55: 0.05817563816 | E55: 1.799403883 | F55: =alloc_a*F54/SUM(alloc_a,alloc_b)*EXP(B55)+alloc_b*F54/SUM(alloc_a,alloc_b)*EXP(C55) -> 0.9440477121 | G55: -0.001959368535 | H55: 0.5
A56: 41 | B56: 0.2232168367 | C56: -0.02572305707 | D56: 0.07272487717 | E56: 1.753707954 | F56: =alloc_a*F55/SUM(alloc_a,alloc_b)*EXP(B56)+alloc_b*F55/SUM(alloc_a,alloc_b)*EXP(C56) -> 1.050109855 | G56: 0.1064733538 | H56: 0.5
A57: 42 | B57: -0.549007512 | C57: 0.02508129796 | D57: 0.04200026818 | E57: 1.79824947 | F57: =alloc_a*F56/SUM(alloc_a,alloc_b)*EXP(B57)+alloc_b*F56/SUM(alloc_a,alloc_b)*EXP(C57) -> 0.8416216691 | G57: -0.221319472 | H57: 0.5
A58: 43 | B58: -0.8922212152 | C58: 0.06231586404 | D58: 0.01720938352 | E58: 1.913874151 | F58: =alloc_a*F57/SUM(alloc_a,alloc_b)*EXP(B58)+alloc_b*F57/SUM(alloc_a,alloc_b)*EXP(C58) -> 0.6202932968 | G58: -0.3051381637 | H58: 0.5
A59: 44 | B59: -0.1327309109 | C59: 0.09498162668 | D59: 0.01507026922 | E59: 2.104569989 | F59: =alloc_a*F58/SUM(alloc_a,alloc_b)*EXP(B59)+alloc_b*F58/SUM(alloc_a,alloc_b)*EXP(C59) -> 0.6126448797 | G59: -0.01240697275 | H59: 0.5
A60: 45 | B60: 0.8084643744 | C60: 0.07416496091 | D60: 0.03382459673 | E60: 2.266589155 | F60: =alloc_a*F59/SUM(alloc_a,alloc_b)*EXP(B60)+alloc_b*F59/SUM(alloc_a,alloc_b)*EXP(C60) -> 1.017432567 | G60: 0.5072521892 | H60: 0.5
A61: 46 | B61: 0.5000956365 | C61: 0.01455931442 | D61: 0.05577266575 | E61: 2.299830538 | F61: =alloc_a*F60/SUM(alloc_a,alloc_b)*EXP(B61)+alloc_b*F60/SUM(alloc_a,alloc_b)*EXP(C61) -> 1.354988598 | G61: 0.2865106768 | H61: 0.5
A62: 47 | B62: 0.1564956164 | C62: 0.02701927112 | D62: 0.06522086967 | E62: 2.36281738 | F62: =alloc_a*F61/SUM(alloc_a,alloc_b)*EXP(B62)+alloc_b*F61/SUM(alloc_a,alloc_b)*EXP(C62) -> 1.488314895 | G62: 0.09385149715 | H62: 0.5
A63: 48 | B63: 0.3861148934 | C63: 0.1961713909 | D63: 0.09595644572 | E63: 2.874923609 | F63: =alloc_a*F62/SUM(alloc_a,alloc_b)*EXP(B63)+alloc_b*F62/SUM(alloc_a,alloc_b)*EXP(C63) -> 2.000287125 | G63: 0.2956461957 | H63: 0.5
A64: 49 | B64: -0.1778223598 | C64: -0.08134996876 | D64: 0.08032428778 | E64: 2.650308728 | F64: =alloc_a*F63/SUM(alloc_a,alloc_b)*EXP(B64)+alloc_b*F63/SUM(alloc_a,alloc_b)*EXP(C64) -> 1.759214641 | G64: -0.1284232499 | H64: 0.5
A65: 50 | B65: -0.905152909 | C65: 0.1138527284 | D65: 0.03248957047 | E65: 2.969901724 | F65: =alloc_a*F64/SUM(alloc_a,alloc_b)*EXP(B65)+alloc_b*F64/SUM(alloc_a,alloc_b)*EXP(C65) -> 1.341460198 | G65: -0.2711087624 | H65: 0.5
A66: 51 | B66: 0.1668725852 | C66: -0.04747199389 | D66: 0.03838979674 | E66: 2.832208706 | F66: =alloc_a*F65/SUM(alloc_a,alloc_b)*EXP(B66)+alloc_b*F65/SUM(alloc_a,alloc_b)*EXP(C66) -> 1.432170328 | G66: 0.0654322852 | H66: 0.5
A67: 52 | B67: -0.1001495095 | C67: -0.01532862947 | D67: 0.03473133151 | E67: 2.789125872 | F67: =alloc_a*F66/SUM(alloc_a,alloc_b)*EXP(B67)+alloc_b*F66/SUM(alloc_a,alloc_b)*EXP(C67) -> 1.353036044 | G67: -0.05684001625 | H67: 0.5
A68: 53 | B68: 0.8934634267 | C68: 0.07005118128 | D68: 0.08486872336 | E68: 2.991513422 | F68: =alloc_a*F67/SUM(alloc_a,alloc_b)*EXP(B68)+alloc_b*F67/SUM(alloc_a,alloc_b)*EXP(C68) -> 2.378732919 | G68: 0.5642169695 | H68: 0.5
A69: 54 | B69: -0.0961616767 | C69: -0.03142408096 | D69: 0.07708771697 | E69: 2.898969531 | F69: =alloc_a*F68/SUM(alloc_a,alloc_b)*EXP(B69)+alloc_b*F68/SUM(alloc_a,alloc_b)*EXP(C69) -> 2.232894795 | G69: -0.06326910075 | H69: 0.5
A70: 55 | B70: -0.6255625425 | C70: 0.1286050343 | D70: 0.04123887636 | E70: 3.296826615 | F70: =alloc_a*F69/SUM(alloc_a,alloc_b)*EXP(B70)+alloc_b*F69/SUM(alloc_a,alloc_b)*EXP(C70) -> 1.866924756 | G70: -0.1790062962 | H70: 0.5
A71: 56 | B71: 0.05604538705 | C71: 0.1887300247 | D71: 0.04361611968 | E71: 3.981626478 | F71: =alloc_a*F70/SUM(alloc_a,alloc_b)*EXP(B71)+alloc_b*F70/SUM(alloc_a,alloc_b)*EXP(C71) -> 2.114628838 | G71: 0.1245867451 | H71: 0.5
A72: 57 | B72: -0.0530688011 | C72: -0.02774256704 | D72: 0.04136181029 | E72: 3.872684096 | F72: =alloc_a*F71/SUM(alloc_a,alloc_b)*EXP(B72)+alloc_b*F71/SUM(alloc_a,alloc_b)*EXP(C72) -> 2.031051822 | G72: -0.04032550895 | H72: 0.5
A73: 58 | B73: 0.398307915 | C73: 0.2449147752 | D73: 0.06160024904 | E73: 4.947402082 | F73: =alloc_a*F72/SUM(alloc_a,alloc_b)*EXP(B73)+alloc_b*F72/SUM(alloc_a,alloc_b)*EXP(C73) -> 2.809772294 | G73: 0.324549648 | H73: 0.5
A74: 59 | B74: 0.3919246252 | C74: 0.2635351662 | D74: 0.09115766033 | E74: 6.439157915 | F74: =alloc_a*F73/SUM(alloc_a,alloc_b)*EXP(B74)+alloc_b*F73/SUM(alloc_a,alloc_b)*EXP(C74) -> 3.907479003 | G74: 0.3297889637 | H74: 0.5
A75: 60 | B75: 0.1585266139 | C75: 0.1297654495 | D75: 0.1068170067 | E75: 7.331376019 | F75: =alloc_a*F74/SUM(alloc_a,alloc_b)*EXP(B75)+alloc_b*F74/SUM(alloc_a,alloc_b)*EXP(C75) -> 4.513811138 | G75: 0.1442494287 | H75: 0.5
A76: 61 | B76: 1.041695215 | C76: 0.08171051112 | D76: 0.3027212355 | E76: 7.955581308 | F76: =alloc_a*F75/SUM(alloc_a,alloc_b)*EXP(B76)+alloc_b*F75/SUM(alloc_a,alloc_b)*EXP(C76) -> 8.845171412 | G76: 0.6727298685 | H76: 0.5
A77: 62 | B77: 0.09088831452 | C77: 0.01321459296 | D77: 0.3315241579 | E77: 8.06140877 | F77: =alloc_a*F76/SUM(alloc_a,alloc_b)*EXP(B77)+alloc_b*F76/SUM(alloc_a,alloc_b)*EXP(C77) -> 9.324796312 | G77: 0.05280541511 | H77: 0.5
A78: 63 | B78: -0.03248684798 | C78: 0.08503712661 | D78: 0.3209270484 | E78: 8.776919161 | F78: =alloc_a*F77/SUM(alloc_a,alloc_b)*EXP(B78)+alloc_b*F77/SUM(alloc_a,alloc_b)*EXP(C78) -> 9.589586348 | G78: 0.02800063222 | H78: 0.5
A79: 64 | B79: -0.4106860512 | C79: -0.07454124731 | D79: 0.2128372486 | E79: 8.146465938 | F79: =alloc_a*F78/SUM(alloc_a,alloc_b)*EXP(B79)+alloc_b*F78/SUM(alloc_a,alloc_b)*EXP(C79) -> 7.630262669 | G79: -0.2285554838 | H79: 0.5
A80: 65 | B80: =IF(sigma_a=0,mu_a,_xlfn.NORM.INV(RAND(),mu_a,sigma_a)) -> 0.1870905116 | C80: =IF(sigma_b=0,mu_b,_xlfn.NORM.INV(RAND(),mu_b,sigma_b)) -> -0.05942556148 | D80: 0.2566256207 | E80: 7.676461083 | F80: =alloc_a*F79/SUM(alloc_a,alloc_b)*EXP(B80)+alloc_b*F79/SUM(alloc_a,alloc_b)*EXP(C80) -> 8.195062678 | G80: 0.07140958997 | H80: 0.5
A81: =A80+1 -> 66 | B81: 0.08808419267 | C81: 0.002602130824 | D81: 0.2802557241 | E81: 7.69646225 | F81: =alloc_a*F80/SUM(alloc_a,alloc_b)*EXP(B81)+alloc_b*F80/SUM(alloc_a,alloc_b)*EXP(C81) -> 8.58303982 | G81: 0.04625628164 | H81: =EXP(G81)/(EXP(B81)+EXP(C81)) -> 0.5
A82: 67 | B82: -0.1839932641 | C82: -0.1508977837 | D82: 0.2331563416 | E82: 6.618461834 | F82: =alloc_a*F81/SUM(alloc_a,alloc_b)*EXP(B82)+alloc_b*F81/SUM(alloc_a,alloc_b)*EXP(C82) -> 7.260723836 | G82: -0.1673086163 | H82: 0.5
A83: 68 | B83: -0.06726845468 | C83: 0.06915133477 | D83: 0.2179881641 | E83: 7.092332893 | F83: =alloc_a*F82/SUM(alloc_a,alloc_b)*EXP(B83)+alloc_b*F82/SUM(alloc_a,alloc_b)*EXP(C83) -> 7.28447564 | G83: 0.003265933265 | H83: 0.5
A84: 69 | B84: -0.2093307875 | C84: 0.1141536755 | D84: 0.1768160595 | E84: 7.949968782 | F84: =alloc_a*F83/SUM(alloc_a,alloc_b)*EXP(B84)+alloc_b*F83/SUM(alloc_a,alloc_b)*EXP(C84) -> 7.036990136 | G84: -0.03456491776 | H84: 0.5
A85: 70 | B85: -0.9530954525 | C85: 0.1393754227 | D85: 0.06817067779 | E85: 9.13893104 | F85: =alloc_a*F84/SUM(alloc_a,alloc_b)*EXP(B85)+alloc_b*F84/SUM(alloc_a,alloc_b)*EXP(C85) -> 5.401246438 | G85: -0.2645507925 | H85: 0.5
A86: 71 | B86: 0.05385175617 | C86: 0.05541028521 | D86: 0.07194243491 | E86: 9.659614202 | F86: =alloc_a*F85/SUM(alloc_a,alloc_b)*EXP(B86)+alloc_b*F85/SUM(alloc_a,alloc_b)*EXP(C86) -> 5.704532722 | G86: 0.05463132431 | H86: 0.5
A87: 72 | B87: 0.344351656 | C87: -0.08494790688 | D87: 0.1015161542 | E87: 8.872936514 | F87: =alloc_a*F86/SUM(alloc_a,alloc_b)*EXP(B87)+alloc_b*F86/SUM(alloc_a,alloc_b)*EXP(C87) -> 6.644739244 | G87: 0.1525643773 | H87: 0.5
A88: 73 | B88: -0.0596442796 | C88: 0.3034339869 | D88: 0.09563832802 | E88: 12.01841179 | F88: =alloc_a*F87/SUM(alloc_a,alloc_b)*EXP(B88)+alloc_b*F87/SUM(alloc_a,alloc_b)*EXP(C88) -> 7.630159958 | G88: 0.138283359 | H88: 0.5
A89: 74 | B89: 0.1200383189 | C89: -0.06280072758 | D89: 0.1078360458 | E89: 11.28685825 | F89: =alloc_a*F88/SUM(alloc_a,alloc_b)*EXP(B89)+alloc_b*F88/SUM(alloc_a,alloc_b)*EXP(C89) -> 7.884513838 | G89: 0.03279175253 | H89: 0.5
A90: 75 | B90: -0.1727309649 | C90: 0.08706918928 | D90: 0.09072936047 | E90: 12.31364813 | F90: =alloc_a*F89/SUM(alloc_a,alloc_b)*EXP(B90)+alloc_b*F89/SUM(alloc_a,alloc_b)*EXP(C90) -> 7.617765366 | G90: -0.03441749433 | H90: 0.5
A91: 76 | B91: 0.1092815474 | C91: 0.08417795984 | D91: 0.1012064573 | E91: 13.39506307 | F91: =alloc_a*F90/SUM(alloc_a,alloc_b)*EXP(B91)+alloc_b*F90/SUM(alloc_a,alloc_b)*EXP(C91) -> 8.392106762 | G91: 0.09680852531 | H91: 0.5
A92: 77 | B92: -0.3639721857 | C92: -0.03536645875 | D92: 0.07032943215 | E92: 12.92960641 | F92: =alloc_a*F91/SUM(alloc_a,alloc_b)*EXP(B92)+alloc_b*F91/SUM(alloc_a,alloc_b)*EXP(C92) -> 6.966129001 | G92: -0.1862319026 | H92: 0.5
A93: 78 | B93: -0.1851810819 | C93: -0.1567503573 | D93: 0.05844050886 | E93: 11.05374622 | F93: =alloc_a*F92/SUM(alloc_a,alloc_b)*EXP(B93)+alloc_b*F92/SUM(alloc_a,alloc_b)*EXP(C93) -> 5.871998322 | G93: -0.1708646848 | H93: 0.5
A94: 79 | B94: 0.2270408967 | C94: -0.06952414604 | D94: 0.07333589515 | E94: 10.31135019 | F94: =alloc_a*F93/SUM(alloc_a,alloc_b)*EXP(B94)+alloc_b*F93/SUM(alloc_a,alloc_b)*EXP(C94) -> 6.42314055 | G94: 0.08971217478 | H94: 0.5
A95: 80 | B95: -0.08572415322 | C95: -0.0422372295 | D95: 0.06731115933 | E95: 9.884896831 | F95: =alloc_a*F94/SUM(alloc_a,alloc_b)*EXP(B95)+alloc_b*F94/SUM(alloc_a,alloc_b)*EXP(C95) -> 6.026478596 | G95: -0.06374432091 | H95: 0.5
A96: 81 | B96: -0.4910394384 | C96: 0.1614901602 | D96: 0.0411937522 | E96: 11.61733268 | F96: =alloc_a*F95/SUM(alloc_a,alloc_b)*EXP(B96)+alloc_b*F95/SUM(alloc_a,alloc_b)*EXP(C96) -> 5.385414441 | G96: -0.1124685897 | H96: 0.5
A97: 82 | B97: 0.01469708275 | C97: -0.005874205621 | D97: 0.04180365108 | E97: 11.54929013 | F97: =alloc_a*F96/SUM(alloc_a,alloc_b)*EXP(B97)+alloc_b*F96/SUM(alloc_a,alloc_b)*EXP(C97) -> 5.409510481 | G97: 0.004464334871 | H97: 0.5
A98: 83 | B98: -0.2635784829 | C98: -0.05156719104 | D98: 0.03211763317 | E98: 10.96882089 | F98: =alloc_a*F97/SUM(alloc_a,alloc_b)*EXP(B98)+alloc_b*F97/SUM(alloc_a,alloc_b)*EXP(C98) -> 4.64687 | G98: -0.15196473 | H98: 0.5
A99: 84 | B99: 0.4280549714 | C99: 0.1443705135 | D99: 0.04927713452 | E99: 12.67241136 | F99: =alloc_a*F98/SUM(alloc_a,alloc_b)*EXP(B99)+alloc_b*F98/SUM(alloc_a,alloc_b)*EXP(C99) -> 6.249070134 | G99: 0.2962387994 | H99: 0.5
A100: 85 | B100: -0.7484736407 | C100: -0.03644168716 | D100: 0.02331242616 | E100: 12.21892048 | F100: =alloc_a*F99/SUM(alloc_a,alloc_b)*EXP(B100)+alloc_b*F99/SUM(alloc_a,alloc_b)*EXP(C100) -> 4.490901822 | G100: -0.3303791414 | H100: 0.5
A101: 86 | B101: 0.03450101751 | C101: -0.1570251438 | D101: =D100*EXP(B101) -> 0.02413076415 | E101: =E100*EXP(C101) -> 10.44329834 | F101: =alloc_a*F100/SUM(alloc_a,alloc_b)*EXP(B101)+alloc_b*F100/SUM(alloc_a,alloc_b)*EXP(C101) -> 4.243420909 | G101: =LN(F101/F100) -> -0.05668377054 | H101: 0.5
A102: 87 | B102: 0.4217910601 | C102: 0.1320805078 | D102: 0.03679193294 | E102: 11.91789406 | F102: =alloc_a*F101/SUM(alloc_a,alloc_b)*EXP(B102)+alloc_b*F101/SUM(alloc_a,alloc_b)*EXP(C102) -> 5.656246926 | G102: 0.2873908228 | H102: 0.5
A103: 88 | B103: 0.2483372462 | C103: -0.06237249121 | D103: 0.04716329085 | E103: 11.19725302 | F103: =alloc_a*F102/SUM(alloc_a,alloc_b)*EXP(B103)+alloc_b*F102/SUM(alloc_a,alloc_b)*EXP(C103) -> 6.282464238 | G103: 0.1050017132 | H103: 0.5
A104: 89 | B104: 0.1103769104 | C104: 0.08701905595 | D104: 0.05266719438 | E104: 12.21527892 | F104: =alloc_a*F103/SUM(alloc_a,alloc_b)*EXP(B104)+alloc_b*F103/SUM(alloc_a,alloc_b)*EXP(C104) -> 6.9346354 | G104: 0.09876618032 | H104: 0.5
A105: 90 | B105: -0.02725419504 | C105: 0.04468727745 | D105: 0.05125117626 | E105: 12.77352687 | F105: =alloc_a*F104/SUM(alloc_a,alloc_b)*EXP(B105)+alloc_b*F104/SUM(alloc_a,alloc_b)*EXP(C105) -> 6.999871748 | G105: 0.009363348675 | H105: 0.5
A106: 91 | B106: 0.1668358657 | C106: -0.1429648549 | D106: 0.06055635595 | E106: 11.0718955 | F106: =alloc_a*F105/SUM(alloc_a,alloc_b)*EXP(B106)+alloc_b*F105/SUM(alloc_a,alloc_b)*EXP(C106) -> 7.16907561 | G106: 0.02388489452 | H106: 0.5
A107: 92 | B107: 0.8971123702 | C107: 0.1205266659 | D107: 0.148515125 | E107: 12.4901037 | F107: =alloc_a*F106/SUM(alloc_a,alloc_b)*EXP(B107)+alloc_b*F106/SUM(alloc_a,alloc_b)*EXP(C107) -> 12.83480236 | G107: 0.5823836937 | H107: 0.5
A108: 93 | B108: -0.5793297022 | C108: -0.02893236671 | D108: 0.08320913212 | E108: 12.13391301 | F108: =alloc_a*F107/SUM(alloc_a,alloc_b)*EXP(B108)+alloc_b*F107/SUM(alloc_a,alloc_b)*EXP(C108) -> 9.829892487 | G108: -0.2667324184 | H108: 0.5
A109: 94 | B109: -0.1425657101 | C109: 0.05589826802 | D109: 0.07215318243 | E109: 12.83149285 | F109: =alloc_a*F108/SUM(alloc_a,alloc_b)*EXP(B109)+alloc_b*F108/SUM(alloc_a,alloc_b)*EXP(C109) -> 9.459407137 | G109: -0.03841828633 | H109: 0.5
A110: 95 | B110: 0.5222072293 | C110: 0.03608616645 | D110: 0.1216318211 | E110: 13.30298831 | F110: =alloc_a*F109/SUM(alloc_a,alloc_b)*EXP(B110)+alloc_b*F109/SUM(alloc_a,alloc_b)*EXP(C110) -> 12.87656852 | G110: 0.3083995554 | H110: 0.5
A111: 96 | B111: 0.337778351 | C111: -0.01503122741 | D111: 0.1705071059 | E111: 13.10452339 | F111: =alloc_a*F110/SUM(alloc_a,alloc_b)*EXP(B111)+alloc_b*F110/SUM(alloc_a,alloc_b)*EXP(C111) -> 15.36761109 | G111: 0.1768528525 | H111: 0.5
A112: 97 | B112: 0.2279951107 | C112: -0.2251044241 | D112: 0.2141704265 | E112: 10.46308181 | F112: =alloc_a*F111/SUM(alloc_a,alloc_b)*EXP(B112)+alloc_b*F111/SUM(alloc_a,alloc_b)*EXP(C112) -> 15.78647087 | G112: 0.02689118071 | H112: 0.5
A113: 98 | B113: 0.4790059785 | C113: -0.103160045 | D113: 0.3457714688 | E113: 9.437517776 | F113: =alloc_a*F112/SUM(alloc_a,alloc_b)*EXP(B113)+alloc_b*F112/SUM(alloc_a,alloc_b)*EXP(C113) -> 19.8629433 | G113: 0.2297025507 | H113: 0.5
A114: 99 | B114: 0.2922980749 | C114: 0.07336857534 | D114: 0.4631616536 | E114: 10.15596861 | F114: =alloc_a*F113/SUM(alloc_a,alloc_b)*EXP(B114)+alloc_b*F113/SUM(alloc_a,alloc_b)*EXP(C114) -> 23.99075418 | G114: 0.1888126639 | H114: 0.5
A115: 100 | B115: -0.3472356604 | C115: -0.08868612292 | D115: 0.3272879867 | E115: 9.294059666 | F115: =alloc_a*F114/SUM(alloc_a,alloc_b)*EXP(B115)+alloc_b*F114/SUM(alloc_a,alloc_b)*EXP(C115) -> 19.45376129 | G115: -0.2096280797 | H115: 0.5
